Workbook

Sheet QT Rede Monofásica - 220 V (hidden)
D2: UNIDADE DE PROJETO DE REDES - CELPE
D3: Cálculo de Queda de Tensão Secundária Monofásica (220 V)
I4: Preencher com os Trafos Monofásicos de Distribuição padronizados 10 ou 15 kVA
C5: Digite potência transformador (kVA) | I5: 10
C6: Potência total do projeto (kVA) | I6: =SUM(H12:H25) -> 3.6
C7: Taxa de carregamento (%) | I7: =I6/I5 -> 0.36
N8: QUEDA DE TENSÃO MONOFÁSICA
D9: Trecho | H9: Carga | K9: Nível de tensão secundária de distribuição (V) | L9: Escolha o Condutor por Trecho | N9: Queda de Tensão - Monofásica | Q9: OBSERVAÇÃO
D10: Nós | G10: Vão (m) | H10: Distribuída trecho (kVA) | I10: Acumulado no fim de trecho (kVA) | J10: Total (kVA) - (C/2+D)*(B/100) | N10: Unitária (%) | O10: No trecho (%) | P10: Total (%)
D11: A | G11: B | H11: C | I11: D | J11: E | N11: G | O11: H | P11: I
D12: Trafo | E12: → | F12: A | G12: 50 | H12: 0.3 | I12: =SUM(H12:$H$25) -> 3.6 | J12: =(H12/2+I12)*(G12/100) -> 1.875 | K12: 220 V | L12: 1x25+1x25 NI | N12: =VLOOKUP($L:$L,'Coeficientes Mono'!$A:$G,2,0) -> 0.6036165184 | O12: =J12*N12 -> 1.131780972 | P12: =SUM($O$12:O12) -> 1.131780972 | Q12: =IF(P12<5,"CABO BEM DIMENSIONADO","AJUSTE O CABO") -> CABO BEM DIMENSIONADO | S12: Caso apareça ajuste o Cabo, terá que ser dividido a distância e centralizado o trafo até este vão
D13: A | E13: → | F13: B | G13: 50 | H13: 0.3 | I13: =SUM(H13:$H$25) -> 3.3 | J13: =(H13/2+I13)*(G13/100) -> 1.725 | L13: 1x25+1x25 NI | N13: =VLOOKUP($L:$L,'Coeficientes Mono'!$A:$G,2,0) -> 0.6036165184 | O13: 1.041238494 | P13: =SUM($O$12:O13) -> 2.173019466 | Q13: =IF(P13<5,"CABO BEM DIMENSIONADO","AJUSTE O CABO") -> CABO BEM DIMENSIONADO
D14: B | E14: → | F14: C | G14: 50 | H14: 0.5 | I14: =SUM(H14:$H$25) -> 3 | J14: 1.625 | L14: 1x25+1x25 NI | N14: =VLOOKUP($L:$L,'Coeficientes Mono'!$A:$G,2,0) -> 0.6036165184 | O14: 0.9808768424 | P14: =SUM($O$12:O14) -> 3.153896309 | Q14: CABO BEM DIMENSIONADO
D15: C | E15: → | F15: D | G15: 50 | H15: 0.3 | I15: =SUM(H15:$H$25) -> 2.5 | J15: 1.325 | L15: 1x25+1x25 NI | N15: =VLOOKUP($L:$L,'Coeficientes Mono'!$A:$G,2,0) -> 0.6036165184 | O15: 0.7997918869 | P15: =SUM($O$12:O15) -> 3.953688195 | Q15: CABO BEM DIMENSIONADO
D16: D | E16: → | F16: E | G16: 50 | H16: 0.3 | I16: =SUM(H16:$H$25) -> 2.2 | J16: 1.175 | L16: 1x25+1x25 NI | N16: =VLOOKUP($L:$L,'Coeficientes Mono'!$A:$G,2,0) -> 0.6036165184 | O16: 0.7092494091 | P16: =SUM($O$12:O16) -> 4.662937605 | Q16: CABO BEM DIMENSIONADO
D17: E | E17: → | F17: F | G17: 50 | H17: 0.3 | I17: =SUM(H17:$H$25) -> 1.9 | J17: 1.025 | L17: 1x25+1x25 NI | N17: =VLOOKUP($L:$L,'Coeficientes Mono'!$A:$G,2,0) -> 0.6036165184 | O17: 0.6187069313 | P17: =SUM($O$12:O17) -> 5.281644536 | Q17: AJUSTE O CABO
D18: F | E18: → | F18: G | G18: 50 | H18: 0.3 | I18: =SUM(H18:$H$25) -> 1.6 | J18: 0.875 | L18: 1x25+1x25 NI | N18: =VLOOKUP($L:$L,'Coeficientes Mono'!$A:$G,2,0) -> 0.6036165184 | O18: 0.5281644536 | P18: =SUM($O$12:O18) -> 5.809808989 | Q18: AJUSTE O CABO
D19: G | E19: → | F19: H | G19: 50 | H19: 0.3 | I19: =SUM(H19:$H$25) -> 1.3 | J19: 0.725 | L19: 1x25+1x25 NI | N19: =VLOOKUP($L:$L,'Coeficientes Mono'!$A:$G,2,0) -> 0.6036165184 | O19: 0.4376219758 | P19: =SUM($O$12:O19) -> 6.247430965 | Q19: AJUSTE O CABO
D20: H | E20: → | F20: I | G20: 50 | H20: 0.4 | I20: =SUM(H20:$H$25) -> 1 | J20: 0.6 | L20: 1x25+1x25 NI | N20: =VLOOKUP($L:$L,'Coeficientes Mono'!$A:$G,2,0) -> 0.6036165184 | O20: 0.362169911 | P20: =SUM($O$12:O20) -> 6.609600876 | Q20: AJUSTE O CABO
D21: I | E21: → | F21: J | G21: 50 | H21: 0.3 | I21: =SUM(H21:$H$25) -> 0.6 | J21: 0.375 | L21: 1x25+1x25 NI | N21: =VLOOKUP($L:$L,'Coeficientes Mono'!$A:$G,2,0) -> 0.6036165184 | O21: 0.2263561944 | P21: =SUM($O$12:O21) -> 6.835957071 | Q21: AJUSTE O CABO
D22: J | E22: → | F22: L | G22: 50 | H22: 0.3 | I22: =SUM(H22:$H$25) -> 0.3 | J22: 0.225 | L22: 1x25+1x25 NI | N22: =VLOOKUP($L:$L,'Coeficientes Mono'!$A:$G,2,0) -> 0.6036165184 | O22: 0.1358137166 | P22: =SUM($O$12:O22) -> 6.971770787 | Q22: AJUSTE O CABO
D23: L | E23: → | F23: M | G23: 50 | I23: =SUM(H23:$H$25) -> 0 | J23: 0 | L23: 1x25+1x25 NI | N23: =VLOOKUP($L:$L,'Coeficientes Mono'!$A:$G,2,0) -> 0.6036165184 | O23: 0 | P23: =SUM($O$12:O23) -> 6.971770787 | Q23: AJUSTE O CABO
D24: M | E24: → | F24: N | G24: 50 | I24: =SUM(H24:$H$25) -> 0 | J24: 0 | L24: 1x25+1x25 NI | N24: =VLOOKUP($L:$L,'Coeficientes Mono'!$A:$G,2,0) -> 0.6036165184 | O24: 0 | P24: =SUM($O$12:O24) -> 6.971770787 | Q24: AJUSTE O CABO
D25: N | E25: → | F25: O | G25: 50 | I25: =SUM(H25:$H$25) -> 0 | J25: 0 | L25: 1x25+1x25 NI | N25: =VLOOKUP($L:$L,'Coeficientes Mono'!$A:$G,2,0) -> 0.6036165184 | O25: 0 | P25: =SUM($O$12:O25) -> 6.971770787 | Q25: AJUSTE O CABO

Sheet QT Rede Trifásica - 380V
D3: Cálculo de Queda de Tensão Secundária Trifásica (380 V) - CELPE
D4: Identifique o Transformador: | I4: T1 | J4: Potencia do trafo: | L4: 75
D5: Indicar circuito novo ou melhoramento/reforço de rede existente: | K5: Novo | L5: Tensão Primária | M5: 13.8 | O5: Tensão Secundária | Q5: 380/220
D6: Porte da Residência | G6: Quantidade | I6: Demanda Diversificada | J6: Sub Total Residencial | K6: Cargas Comerciais | M6: Iluminação Pública | P6: kVA Total
K7: Tipo | L7: Demanda
D8: Tipo A | M8: Qtd.
D9: Tipo B | M9: Pot. Lamp | P9: kVA% - Trafo
D10: Tipo C | M10: kVA da Iluminação
D11: Tipo D
D12: Representação Gráfica do Circuito do Transformador
D48: Trecho | H48: Carga | K48: Nível de tensão secundária de distribuição (V) | L48: Escolha o Condutor por Trecho | N48: Queda de Tensão - Trifásica | Q48: OBSERVAÇÃO
D49: Nós | G49: Vão (m) | H49: Distribuída trecho (kVA) | I49: Acumulado no fim de trecho (kVA) | J49: Total (kVA) - (C/2+D)*(B/100) | N49: Unitária (%) | O49: No trecho (%) - E*G | P49: Total (%)
D50: A | G50: B | H50: C | I50: D | J50: E | N50: G | O50: H | P50: I
D51: 1 | E51: → | F51: 3 | G51: 80 | H51: 10 | I51: 30 | J51: =(H51/2+I51)*(G51/100) -> 28 | K51: 380 V | L51: 3x70+1x50 NI | N51: =VLOOKUP($L:$L,Coeficientes!$A:$G,7,0) -> 0.03534404426 | O51: =J51*N51 -> 0.9896332394 | P51: =IFERROR(VLOOKUP((D51&F51),Calculos_QT_380!D:F,3,0),0) -> 0.9896332394 | Q51: =_xlfn.IFS($K$5="Novo",IF(P51<=3.5,"CABO BEM DIMENSIONADO","AJUSTE O CABO"),$K$5="Existente",IF(P51<=5,"CABO BEM DIMENSIONADO","AJUSTE O CABO")) -> CABO BEM DIMENSIONADO
D52: 1 | E52: → | F52: 4 | G52: 40 | H52: 0 | I52: 50 | J52: =(H52/2+I52)*(G52/100) -> 20 | L52: 3x70+1x50 NI | N52: =VLOOKUP($L:$L,Coeficientes!$A:$G,7,0) -> 0.03534404426 | O52: 0.7068808853 | P52: =IFERROR(VLOOKUP((D52&F52),Calculos_QT_380!D:F,3,0),0) -> 0.7068808853 | Q52: =_xlfn.IFS($K$5="Novo",IF(P52<=3.5,"CABO BEM DIMENSIONADO","AJUSTE O CABO"),$K$5="Existente",IF(P52<=5,"CABO BEM DIMENSIONADO","AJUSTE O CABO")) -> CABO BEM DIMENSIONADO
D53: 4 | E53: → | F53: 5 | G53: 40 | H53: 0 | I53: 40 | J53: 16 | L53: 3x70+1x50 NI | N53: =VLOOKUP($L:$L,Coeficientes!$A:$G,7,0) -> 0.03534404426 | O53: 0.5655047082 | P53: =IFERROR(VLOOKUP((D53&F53),Calculos_QT_380!D:F,3,0),0) -> 1.272385593 | Q53: CABO BEM DIMENSIONADO
D54: 4 | E54: → | F54: 7 | G54: 80 | H54: 10 | I54: 40 | J54: 36 | L54: 3x35+1x35 NI | N54: =VLOOKUP($L:$L,Coeficientes!$A:$G,7,0) -> 0.0736924981 | O54: 2.652929932 | P54: =IFERROR(VLOOKUP((D54&F54),Calculos_QT_380!D:F,3,0),0) -> 3.359810817 | Q54: CABO BEM DIMENSIONADO
E55: → | J55: 0 | L55: 3x35+1x35 NI | N55: =VLOOKUP($L:$L,Coeficientes!$A:$G,7,0) -> 0.0736924981 | O55: 0 | P55: =IFERROR(VLOOKUP((D55&F55),Calculos_QT_380!D:F,3,0),0) -> 0 | Q55: CABO BEM DIMENSIONADO
E56: → | J56: 0 | L56: 3x35+1x35 NI | N56: =VLOOKUP($L:$L,Coeficientes!$A:$G,7,0) -> 0.0736924981 | O56: 0 | P56: =IFERROR(VLOOKUP((D56&F56),Calculos_QT_380!D:F,3,0),0) -> 0 | Q56: CABO BEM DIMENSIONADO
E57: → | J57: 0 | L57: 3x35+1x35 NI | N57: =VLOOKUP($L:$L,Coeficientes!$A:$G,7,0) -> 0.0736924981 | O57: 0 | P57: =IFERROR(VLOOKUP((D57&F57),Calculos_QT_380!D:F,3,0),0) -> 0 | Q57: CABO BEM DIMENSIONADO
E58: → | J58: 0 | L58: 3x35+1x35 NI | N58: =VLOOKUP($L:$L,Coeficientes!$A:$G,7,0) -> 0.0736924981 | O58: 0 | P58: =IFERROR(VLOOKUP((D58&F58),Calculos_QT_380!D:F,3,0),0) -> 0 | Q58: CABO BEM DIMENSIONADO
E59: → | J59: 0 | L59: 3x35+1x35 NI | N59: =VLOOKUP($L:$L,Coeficientes!$A:$G,7,0) -> 0.0736924981 | O59: 0 | P59: =IFERROR(VLOOKUP((D59&F59),Calculos_QT_380!D:F,3,0),0) -> 0 | Q59: CABO BEM DIMENSIONADO
E60: → | J60: 0 | L60: 3x35+1x35 NI | N60: =VLOOKUP($L:$L,Coeficientes!$A:$G,7,0) -> 0.0736924981 | O60: 0 | P60: =IFERROR(VLOOKUP((D60&F60),Calculos_QT_380!D:F,3,0),0) -> 0 | Q60: CABO BEM DIMENSIONADO
E61: → | J61: 0 | L61: 3x35+1x35 NI | N61: =VLOOKUP($L:$L,Coeficientes!$A:$G,7,0) -> 0.0736924981 | O61: 0 | P61: =IFERROR(VLOOKUP((D61&F61),Calculos_QT_380!D:F,3,0),0) -> 0 | Q61: CABO BEM DIMENSIONADO
E62: → | J62: 0 | L62: 3x35+1x35 NI | N62: =VLOOKUP($L:$L,Coeficientes!$A:$G,7,0) -> 0.0736924981 | O62: 0 | P62: =IFERROR(VLOOKUP((D62&F62),Calculos_QT_380!D:F,3,0),0) -> 0 | Q62: CABO BEM DIMENSIONADO
E63: → | J63: 0 | L63: 3x35+1x35 NI | N63: =VLOOKUP($L:$L,Coeficientes!$A:$G,7,0) -> 0.0736924981 | O63: 0 | P63: =IFERROR(VLOOKUP((D63&F63),Calculos_QT_380!D:F,3,0),0) -> 0 | Q63: CABO BEM DIMENSIONADO
E64: → | J64: =(H64/2+I64)*(G64/100) -> 0 | L64: 3x35+1x35 NI | N64: =VLOOKUP($L:$L,Coeficientes!$A:$G,7,0) -> 0.0736924981 | O64: 0 | P64: =IFERROR(VLOOKUP((D64&F64),Calculos_QT_380!D:F,3,0),0) -> 0 | Q64: CABO BEM DIMENSIONADO

Sheet Calculos_QT_380 (hidden)
B1: PONTO 1 | C1: PONTO 2 | D1: TRECHO ATUAL | E1: TRECHO ANTERIOR | F1: QUEDA DE TENSÃO TOTAL
B2: ='QT Rede Trifásica - 380V'!D51 -> 1 | C2: ='QT Rede Trifásica - 380V'!F51 -> 3 | D2: =B2&C2 -> 13 | E2: =IFERROR(VLOOKUP(B2,C:D,2,0),"") ->  | F2: =IF(E2="",'QT Rede Trifásica - 380V'!O51,SUM('QT Rede Trifásica - 380V'!O51,VLOOKUP(E2,D:F,3,0))) -> 0.9896332394
B3: ='QT Rede Trifásica - 380V'!D52 -> 1 | C3: ='QT Rede Trifásica - 380V'!F52 -> 4 | D3: =B3&C3 -> 14 | E3: =IFERROR(VLOOKUP(B3,C:D,2,0),"") ->  | F3: =IF(E3="",'QT Rede Trifásica - 380V'!O52,SUM('QT Rede Trifásica - 380V'!O52,VLOOKUP(E3,D:F,3,0))) -> 0.7068808853
B4: ='QT Rede Trifásica - 380V'!D53 -> 4 | C4: ='QT Rede Trifásica - 380V'!F53 -> 5 | D4: =B4&C4 -> 45 | E4: 14 | F4: =IF(E4="",'QT Rede Trifásica - 380V'!O53,SUM('QT Rede Trifásica - 380V'!O53,VLOOKUP(E4,D:F,3,0))) -> 1.272385593
B5: ='QT Rede Trifásica - 380V'!D54 -> 4 | C5: ='QT Rede Trifásica - 380V'!F54 -> 7 | D5: =B5&C5 -> 47 | E5: 14 | F5: =IF(E5="",'QT Rede Trifásica - 380V'!O54,SUM('QT Rede Trifásica - 380V'!O54,VLOOKUP(E5,D:F,3,0))) -> 3.359810817
B6: ='QT Rede Trifásica - 380V'!D55 -> 0 | C6: ='QT Rede Trifásica - 380V'!F55 -> 0 | D6: 00 | E6: 00 | F6: =IF(E6="",'QT Rede Trifásica - 380V'!O55,SUM('QT Rede Trifásica - 380V'!O55,VLOOKUP(E6,D:F,3,0))) -> 0.7068808853
B7: ='QT Rede Trifásica - 380V'!D56 -> 0 | C7: ='QT Rede Trifásica - 380V'!F56 -> 0 | D7: 00 | E7: 00 | F7: =IF(E7="",'QT Rede Trifásica - 380V'!O56,SUM('QT Rede Trifásica - 380V'!O56,VLOOKUP(E7,D:F,3,0))) -> 0.7068808853
B8: ='QT Rede Trifásica - 380V'!D57 -> 0 | C8: ='QT Rede Trifásica - 380V'!F57 -> 0 | D8: 00 | E8: 00 | F8: =IF(E8="",'QT Rede Trifásica - 380V'!O57,SUM('QT Rede Trifásica - 380V'!O57,VLOOKUP(E8,D:F,3,0))) -> 0.7068808853
B9: ='QT Rede Trifásica - 380V'!D58 -> 0 | C9: ='QT Rede Trifásica - 380V'!F58 -> 0 | D9: 00 | E9: 00 | F9: =IF(E9="",'QT Rede Trifásica - 380V'!O58,SUM('QT Rede Trifásica - 380V'!O58,VLOOKUP(E9,D:F,3,0))) -> 0.7068808853
B10: ='QT Rede Trifásica - 380V'!D59 -> 0 | C10: ='QT Rede Trifásica - 380V'!F59 -> 0 | D10: 00 | E10: 00 | F10: =IF(E10="",'QT Rede Trifásica - 380V'!O59,SUM('QT Rede Trifásica - 380V'!O59,VLOOKUP(E10,D:F,3,0))) -> 0.7068808853
B11: ='QT Rede Trifásica - 380V'!D60 -> 0 | C11: ='QT Rede Trifásica - 380V'!F60 -> 0 | D11: 00 | E11: 00 | F11: =IF(E11="",'QT Rede Trifásica - 380V'!O60,SUM('QT Rede Trifásica - 380V'!O60,VLOOKUP(E11,D:F,3,0))) -> 0.7068808853
B12: ='QT Rede Trifásica - 380V'!D61 -> 0 | C12: ='QT Rede Trifásica - 380V'!F61 -> 0 | D12: 00 | E12: 00 | F12: =IF(E12="",'QT Rede Trifásica - 380V'!O61,SUM('QT Rede Trifásica - 380V'!O61,VLOOKUP(E12,D:F,3,0))) -> 0.7068808853
B13: ='QT Rede Trifásica - 380V'!D62 -> 0 | C13: ='QT Rede Trifásica - 380V'!F62 -> 0 | D13: 00 | E13: 00 | F13: =IF(E13="",'QT Rede Trifásica - 380V'!O62,SUM('QT Rede Trifásica - 380V'!O62,VLOOKUP(E13,D:F,3,0))) -> 0.7068808853
B14: ='QT Rede Trifásica - 380V'!D63 -> 0 | C14: ='QT Rede Trifásica - 380V'!F63 -> 0 | D14: 00 | E14: 00 | F14: =IF(E14="",'QT Rede Trifásica - 380V'!O63,SUM('QT Rede Trifásica - 380V'!O63,VLOOKUP(E14,D:F,3,0))) -> 0.7068808853
B15: ='QT Rede Trifásica - 380V'!D64 -> 0 | C15: ='QT Rede Trifásica - 380V'!F64 -> 0 | D15: 00 | E15: 00 | F15: =IF(E15="",'QT Rede Trifásica - 380V'!O64,SUM('QT Rede Trifásica - 380V'!O64,VLOOKUP(E15,D:F,3,0))) -> 0.7068808853
B16: ='QT Rede Trifásica - 380V'!D65 -> 0 | C16: ='QT Rede Trifásica - 380V'!F65 -> 0 | D16: 00 | E16: 00 | F16: =IF(E16="",'QT Rede Trifásica - 380V'!O65,SUM('QT Rede Trifásica - 380V'!O65,VLOOKUP(E16,D:F,3,0))) -> 0.7068808853
B17: ='QT Rede Trifásica - 380V'!D66 -> 0 | C17: ='QT Rede Trifásica - 380V'!F66 -> 0 | D17: 00 | E17: 00 | F17: =IF(E17="",'QT Rede Trifásica - 380V'!O66,SUM('QT Rede Trifásica - 380V'!O66,VLOOKUP(E17,D:F,3,0))) -> 0.7068808853
B18: ='QT Rede Trifásica - 380V'!D67 -> 0 | C18: ='QT Rede Trifásica - 380V'!F67 -> 0 | D18: 00 | E18: 00 | F18: =IF(E18="",'QT Rede Trifásica - 380V'!O67,SUM('QT Rede Trifásica - 380V'!O67,VLOOKUP(E18,D:F,3,0))) -> 0.7068808853
B19: ='QT Rede Trifásica - 380V'!D68 -> 0 | C19: ='QT Rede Trifásica - 380V'!F68 -> 0 | D19: 00 | E19: 00 | F19: =IF(E19="",'QT Rede Trifásica - 380V'!O68,SUM('QT Rede Trifásica - 380V'!O68,VLOOKUP(E19,D:F,3,0))) -> 0.7068808853
B20: ='QT Rede Trifásica - 380V'!D69 -> 0 | C20: ='QT Rede Trifásica - 380V'!F69 -> 0 | D20: 00 | E20: 00 | F20: =IF(E20="",'QT Rede Trifásica - 380V'!O69,SUM('QT Rede Trifásica - 380V'!O69,VLOOKUP(E20,D:F,3,0))) -> 0.7068808853
B21: ='QT Rede Trifásica - 380V'!D70 -> 0 | C21: ='QT Rede Trifásica - 380V'!F70 -> 0 | D21: 00 | E21: 00 | F21: =IF(E21="",'QT Rede Trifásica - 380V'!O70,SUM('QT Rede Trifásica - 380V'!O70,VLOOKUP(E21,D:F,3,0))) -> 0.7068808853
B22: ='QT Rede Trifásica - 380V'!D71 -> 0 | C22: ='QT Rede Trifásica - 380V'!F71 -> 0 | D22: 00 | E22: 00 | F22: =IF(E22="",'QT Rede Trifásica - 380V'!O71,SUM('QT Rede Trifásica - 380V'!O71,VLOOKUP(E22,D:F,3,0))) -> 0.7068808853
B23: ='QT Rede Trifásica - 380V'!D72 -> 0 | C23: ='QT Rede Trifásica - 380V'!F72 -> 0 | D23: 00 | E23: 00 | F23: =IF(E23="",'QT Rede Trifásica - 380V'!O72,SUM('QT Rede Trifásica - 380V'!O72,VLOOKUP(E23,D:F,3,0))) -> 0.7068808853
B24: ='QT Rede Trifásica - 380V'!D73 -> 0 | C24: ='QT Rede Trifásica - 380V'!F73 -> 0 | D24: 00 | E24: 00 | F24: =IF(E24="",'QT Rede Trifásica - 380V'!O73,SUM('QT Rede Trifásica - 380V'!O73,VLOOKUP(E24,D:F,3,0))) -> 0.7068808853
B25: ='QT Rede Trifásica - 380V'!D74 -> 0 | C25: ='QT Rede Trifásica - 380V'!F74 -> 0 | D25: 00 | E25: 00 | F25: =IF(E25="",'QT Rede Trifásica - 380V'!O74,SUM('QT Rede Trifásica - 380V'!O74,VLOOKUP(E25,D:F,3,0))) -> 0.7068808853
B26: ='QT Rede Trifásica - 380V'!D75 -> 0 | C26: ='QT Rede Trifásica - 380V'!F75 -> 0 | D26: 00 | E26: 00 | F26: =IF(E26="",'QT Rede Trifásica - 380V'!O75,SUM('QT Rede Trifásica - 380V'!O75,VLOOKUP(E26,D:F,3,0))) -> 0.7068808853
B27: ='QT Rede Trifásica - 380V'!D76 -> 0 | C27: ='QT Rede Trifásica - 380V'!F76 -> 0 | D27: 00 | E27: 00 | F27: =IF(E27="",'QT Rede Trifásica - 380V'!O76,SUM('QT Rede Trifásica - 380V'!O76,VLOOKUP(E27,D:F,3,0))) -> 0.7068808853
B28: ='QT Rede Trifásica - 380V'!D77 -> 0 | C28: ='QT Rede Trifásica - 380V'!F77 -> 0 | D28: 00 | E28: 00 | F28: =IF(E28="",'QT Rede Trifásica - 380V'!O77,SUM('QT Rede Trifásica - 380V'!O77,VLOOKUP(E28,D:F,3,0))) -> 0.7068808853
B29: ='QT Rede Trifásica - 380V'!D78 -> 0 | C29: ='QT Rede Trifásica - 380V'!F78 -> 0 | D29: 00 | E29: 00 | F29: =IF(E29="",'QT Rede Trifásica - 380V'!O78,SUM('QT Rede Trifásica - 380V'!O78,VLOOKUP(E29,D:F,3,0))) -> 0.7068808853
B30: ='QT Rede Trifásica - 380V'!D79 -> 0 | C30: ='QT Rede Trifásica - 380V'!F79 -> 0 | D30: 00 | E30: 00 | F30: =IF(E30="",'QT Rede Trifásica - 380V'!O79,SUM('QT Rede Trifásica - 380V'!O79,VLOOKUP(E30,D:F,3,0))) -> 0.7068808853
B31: ='QT Rede Trifásica - 380V'!D80 -> 0 | C31: ='QT Rede Trifásica - 380V'!F80 -> 0 | D31: 00 | E31: 00 | F31: =IF(E31="",'QT Rede Trifásica - 380V'!O80,SUM('QT Rede Trifásica - 380V'!O80,VLOOKUP(E31,D:F,3,0))) -> 0.7068808853
B32: ='QT Rede Trifásica - 380V'!D81 -> 0 | C32: ='QT Rede Trifásica - 380V'!F81 -> 0 | D32: 00 | E32: 00 | F32: =IF(E32="",'QT Rede Trifásica - 380V'!O81,SUM('QT Rede Trifásica - 380V'!O81,VLOOKUP(E32,D:F,3,0))) -> 0.7068808853
B33: ='QT Rede Trifásica - 380V'!D82 -> 0 | C33: ='QT Rede Trifásica - 380V'!F82 -> 0 | D33: 00 | E33: 00 | F33: =IF(E33="",'QT Rede Trifásica - 380V'!O82,SUM('QT Rede Trifásica - 380V'!O82,VLOOKUP(E33,D:F,3,0))) -> 0.7068808853
B34: ='QT Rede Trifásica - 380V'!D83 -> 0 | C34: ='QT Rede Trifásica - 380V'!F83 -> 0 | D34: 00 | E34: 00 | F34: =IF(E34="",'QT Rede Trifásica - 380V'!O83,SUM('QT Rede Trifásica - 380V'!O83,VLOOKUP(E34,D:F,3,0))) -> 0.7068808853
B35: ='QT Rede Trifásica - 380V'!D84 -> 0 | C35: ='QT Rede Trifásica - 380V'!F84 -> 0 | D35: 00 | E35: 00 | F35: =IF(E35="",'QT Rede Trifásica - 380V'!O84,SUM('QT Rede Trifásica - 380V'!O84,VLOOKUP(E35,D:F,3,0))) -> 0.7068808853
B36: ='QT Rede Trifásica - 380V'!D85 -> 0 | C36: ='QT Rede Trifásica - 380V'!F85 -> 0 | D36: 00 | E36: 00 | F36: =IF(E36="",'QT Rede Trifásica - 380V'!O85,SUM('QT Rede Trifásica - 380V'!O85,VLOOKUP(E36,D:F,3,0))) -> 0.7068808853
B37: ='QT Rede Trifásica - 380V'!D86 -> 0 | C37: ='QT Rede Trifásica - 380V'!F86 -> 0 | D37: 00 | E37: 00 | F37: =IF(E37="",'QT Rede Trifásica - 380V'!O86,SUM('QT Rede Trifásica - 380V'!O86,VLOOKUP(E37,D:F,3,0))) -> 0.7068808853
B38: ='QT Rede Trifásica - 380V'!D87 -> 0 | C38: ='QT Rede Trifásica - 380V'!F87 -> 0 | D38: 00 | E38: 00 | F38: =IF(E38="",'QT Rede Trifásica - 380V'!O87,SUM('QT Rede Trifásica - 380V'!O87,VLOOKUP(E38,D:F,3,0))) -> 0.7068808853
B39: ='QT Rede Trifásica - 380V'!D88 -> 0 | C39: ='QT Rede Trifásica - 380V'!F88 -> 0 | D39: 00 | E39: 00 | F39: =IF(E39="",'QT Rede Trifásica - 380V'!O88,SUM('QT Rede Trifásica - 380V'!O88,VLOOKUP(E39,D:F,3,0))) -> 0.7068808853
B40: ='QT Rede Trifásica - 380V'!D89 -> 0 | C40: ='QT Rede Trifásica - 380V'!F89 -> 0 | D40: 00 | E40: 00 | F40: =IF(E40="",'QT Rede Trifásica - 380V'!O89,SUM('QT Rede Trifásica - 380V'!O89,VLOOKUP(E40,D:F,3,0))) -> 0.7068808853
B41: ='QT Rede Trifásica - 380V'!D90 -> 0 | C41: ='QT Rede Trifásica - 380V'!F90 -> 0 | D41: 00 | E41: 00 | F41: =IF(E41="",'QT Rede Trifásica - 380V'!O90,SUM('QT Rede Trifásica - 380V'!O90,VLOOKUP(E41,D:F,3,0))) -> 0.7068808853
B42: ='QT Rede Trifásica - 380V'!D91 -> 0 | C42: ='QT Rede Trifásica - 380V'!F91 -> 0 | D42: 00 | E42: 00 | F42: =IF(E42="",'QT Rede Trifásica - 380V'!O91,SUM('QT Rede Trifásica - 380V'!O91,VLOOKUP(E42,D:F,3,0))) -> 0.7068808853
B43: ='QT Rede Trifásica - 380V'!D92 -> 0 | C43: ='QT Rede Trifásica - 380V'!F92 -> 0 | D43: 00 | E43: 00 | F43: =IF(E43="",'QT Rede Trifásica - 380V'!O92,SUM('QT Rede Trifásica - 380V'!O92,VLOOKUP(E43,D:F,3,0))) -> 0.7068808853
B44: ='QT Rede Trifásica - 380V'!D93 -> 0 | C44: ='QT Rede Trifásica - 380V'!F93 -> 0 | D44: 00 | E44: 00 | F44: =IF(E44="",'QT Rede Trifásica - 380V'!O93,SUM('QT Rede Trifásica - 380V'!O93,VLOOKUP(E44,D:F,3,0))) -> 0.7068808853
B45: ='QT Rede Trifásica - 380V'!D94 -> 0 | C45: ='QT Rede Trifásica - 380V'!F94 -> 0 | D45: 00 | E45: 00 | F45: =IF(E45="",'QT Rede Trifásica - 380V'!O94,SUM('QT Rede Trifásica - 380V'!O94,VLOOKUP(E45,D:F,3,0))) -> 0.7068808853
B46: ='QT Rede Trifásica - 380V'!D95 -> 0 | C46: ='QT Rede Trifásica - 380V'!F95 -> 0 | D46: 00 | E46: 00 | F46: =IF(E46="",'QT Rede Trifásica - 380V'!O95,SUM('QT Rede Trifásica - 380V'!O95,VLOOKUP(E46,D:F,3,0))) -> 0.7068808853
B47: ='QT Rede Trifásica - 380V'!D96 -> 0 | C47: ='QT Rede Trifásica - 380V'!F96 -> 0 | D47: 00 | E47: 00 | F47: =IF(E47="",'QT Rede Trifásica - 380V'!O96,SUM('QT Rede Trifásica - 380V'!O96,VLOOKUP(E47,D:F,3,0))) -> 0.7068808853
B48: ='QT Rede Trifásica - 380V'!D97 -> 0 | C48: ='QT Rede Trifásica - 380V'!F97 -> 0 | D48: 00 | E48: 00 | F48: =IF(E48="",'QT Rede Trifásica - 380V'!O97,SUM('QT Rede Trifásica - 380V'!O97,VLOOKUP(E48,D:F,3,0))) -> 0.7068808853
B49: ='QT Rede Trifásica - 380V'!D98 -> 0 | C49: ='QT Rede Trifásica - 380V'!F98 -> 0 | D49: 00 | E49: 00 | F49: =IF(E49="",'QT Rede Trifásica - 380V'!O98,SUM('QT Rede Trifásica - 380V'!O98,VLOOKUP(E49,D:F,3,0))) -> 0.7068808853
B50: ='QT Rede Trifásica - 380V'!D99 -> 0 | C50: ='QT Rede Trifásica - 380V'!F99 -> 0 | D50: 00 | E50: 00 | F50: =IF(E50="",'QT Rede Trifásica - 380V'!O99,SUM('QT Rede Trifásica - 380V'!O99,VLOOKUP(E50,D:F,3,0))) -> 0.7068808853
B51: ='QT Rede Trifásica - 380V'!D100 -> 0 | C51: ='QT Rede Trifásica - 380V'!F100 -> 0 | D51: 00 | E51: 00 | F51: =IF(E51="",'QT Rede Trifásica - 380V'!O100,SUM('QT Rede Trifásica - 380V'!O100,VLOOKUP(E51,D:F,3,0))) -> 0.7068808853
B52: ='QT Rede Trifásica - 380V'!D101 -> 0 | C52: ='QT Rede Trifásica - 380V'!F101 -> 0 | D52: 00 | E52: 00 | F52: =IF(E52="",'QT Rede Trifásica - 380V'!O101,SUM('QT Rede Trifásica - 380V'!O101,VLOOKUP(E52,D:F,3,0))) -> 0.7068808853
B53: ='QT Rede Trifásica - 380V'!D102 -> 0 | C53: ='QT Rede Trifásica - 380V'!F102 -> 0 | D53: 00 | E53: 00 | F53: =IF(E53="",'QT Rede Trifásica - 380V'!O102,SUM('QT Rede Trifásica - 380V'!O102,VLOOKUP(E53,D:F,3,0))) -> 0.7068808853
B54: ='QT Rede Trifásica - 380V'!D103 -> 0 | C54: ='QT Rede Trifásica - 380V'!F103 -> 0 | D54: 00 | E54: 00 | F54: =IF(E54="",'QT Rede Trifásica - 380V'!O103,SUM('QT Rede Trifásica - 380V'!O103,VLOOKUP(E54,D:F,3,0))) -> 0.7068808853
B55: ='QT Rede Trifásica - 380V'!D104 -> 0 | C55: ='QT Rede Trifásica - 380V'!F104 -> 0 | D55: 00 | E55: 00 | F55: =IF(E55="",'QT Rede Trifásica - 380V'!O104,SUM('QT Rede Trifásica - 380V'!O104,VLOOKUP(E55,D:F,3,0))) -> 0.7068808853
B56: ='QT Rede Trifásica - 380V'!D105 -> 0 | C56: ='QT Rede Trifásica - 380V'!F105 -> 0 | D56: 00 | E56: 00 | F56: =IF(E56="",'QT Rede Trifásica - 380V'!O105,SUM('QT Rede Trifásica - 380V'!O105,VLOOKUP(E56,D:F,3,0))) -> 0.7068808853
B57: ='QT Rede Trifásica - 380V'!D106 -> 0 | C57: ='QT Rede Trifásica - 380V'!F106 -> 0 | D57: 00 | E57: 00 | F57: =IF(E57="",'QT Rede Trifásica - 380V'!O106,SUM('QT Rede Trifásica - 380V'!O106,VLOOKUP(E57,D:F,3,0))) -> 0.7068808853
B58: ='QT Rede Trifásica - 380V'!D107 -> 0 | C58: ='QT Rede Trifásica - 380V'!F107 -> 0 | D58: 00 | E58: 00 | F58: =IF(E58="",'QT Rede Trifásica - 380V'!O107,SUM('QT Rede Trifásica - 380V'!O107,VLOOKUP(E58,D:F,3,0))) -> 0.7068808853
B59: ='QT Rede Trifásica - 380V'!D108 -> 0 | C59: ='QT Rede Trifásica - 380V'!F108 -> 0 | D59: 00 | E59: 00 | F59: =IF(E59="",'QT Rede Trifásica - 380V'!O108,SUM('QT Rede Trifásica - 380V'!O108,VLOOKUP(E59,D:F,3,0))) -> 0.7068808853
B60: ='QT Rede Trifásica - 380V'!D109 -> 0 | C60: ='QT Rede Trifásica - 380V'!F109 -> 0 | D60: 00 | E60: 00 | F60: =IF(E60="",'QT Rede Trifásica - 380V'!O109,SUM('QT Rede Trifásica - 380V'!O109,VLOOKUP(E60,D:F,3,0))) -> 0.7068808853
B61: ='QT Rede Trifásica - 380V'!D110 -> 0 | C61: ='QT Rede Trifásica - 380V'!F110 -> 0 | D61: 00 | E61: 00 | F61: =IF(E61="",'QT Rede Trifásica - 380V'!O110,SUM('QT Rede Trifásica - 380V'!O110,VLOOKUP(E61,D:F,3,0))) -> 0.7068808853
B62: ='QT Rede Trifásica - 380V'!D111 -> 0 | C62: ='QT Rede Trifásica - 380V'!F111 -> 0 | D62: 00 | E62: 00 | F62: =IF(E62="",'QT Rede Trifásica - 380V'!O111,SUM('QT Rede Trifásica - 380V'!O111,VLOOKUP(E62,D:F,3,0))) -> 0.7068808853
B63: ='QT Rede Trifásica - 380V'!D112 -> 0 | C63: ='QT Rede Trifásica - 380V'!F112 -> 0 | D63: 00 | E63: 00 | F63: =IF(E63="",'QT Rede Trifásica - 380V'!O112,SUM('QT Rede Trifásica - 380V'!O112,VLOOKUP(E63,D:F,3,0))) -> 0.7068808853
B64: ='QT Rede Trifásica - 380V'!D113 -> 0 | C64: ='QT Rede Trifásica - 380V'!F113 -> 0 | D64: 00 | E64: 00 | F64: =IF(E64="",'QT Rede Trifásica - 380V'!O113,SUM('QT Rede Trifásica - 380V'!O113,VLOOKUP(E64,D:F,3,0))) -> 0.7068808853
B65: ='QT Rede Trifásica - 380V'!D114 -> 0 | C65: ='QT Rede Trifásica - 380V'!F114 -> 0 | D65: 00 | E65: 00 | F65: =IF(E65="",'QT Rede Trifásica - 380V'!O114,SUM('QT Rede Trifásica - 380V'!O114,VLOOKUP(E65,D:F,3,0))) -> 0.7068808853
B66: ='QT Rede Trifásica - 380V'!D115 -> 0 | C66: ='QT Rede Trifásica - 380V'!F115 -> 0 | D66: 00 | E66: 00 | F66: =IF(E66="",'QT Rede Trifásica - 380V'!O115,SUM('QT Rede Trifásica - 380V'!O115,VLOOKUP(E66,D:F,3,0))) -> 0.7068808853
B67: ='QT Rede Trifásica - 380V'!D116 -> 0 | C67: ='QT Rede Trifásica - 380V'!F116 -> 0 | D67: 00 | E67: =IFERROR(VLOOKUP(B67,C:D,2,0),"") -> 00 | F67: =IF(E67="",'QT Rede Trifásica - 380V'!O116,SUM('QT Rede Trifásica - 380V'!O116,VLOOKUP(E67,D:F,3,0))) -> 0.7068808853
B68: ='QT Rede Trifásica - 380V'!D117 -> 0 | C68: ='QT Rede Trifásica - 380V'!F117 -> 0 | D68: 00 | E68: 00 | F68: =IF(E68="",'QT Rede Trifásica - 380V'!O117,SUM('QT Rede Trifásica - 380V'!O117,VLOOKUP(E68,D:F,3,0))) -> 0.7068808853
B69: ='QT Rede Trifásica - 380V'!D118 -> 0 | C69: ='QT Rede Trifásica - 380V'!F118 -> 0 | D69: =B69&C69 -> 00 | E69: 00 | F69: =IF(E69="",'QT Rede Trifásica - 380V'!O118,SUM('QT Rede Trifásica - 380V'!O118,VLOOKUP(E69,D:F,3,0))) -> 0.7068808853
B70: ='QT Rede Trifásica - 380V'!D119 -> 0 | C70: ='QT Rede Trifásica - 380V'!F119 -> 0 | D70: 00 | E70: 00 | F70: =IF(E70="",'QT Rede Trifásica - 380V'!O119,SUM('QT Rede Trifásica - 380V'!O119,VLOOKUP(E70,D:F,3,0))) -> 0.7068808853
B71: ='QT Rede Trifásica - 380V'!D120 -> 0 | C71: ='QT Rede Trifásica - 380V'!F120 -> 0 | D71: 00 | E71: 00 | F71: =IF(E71="",'QT Rede Trifásica - 380V'!O120,SUM('QT Rede Trifásica - 380V'!O120,VLOOKUP(E71,D:F,3,0))) -> 0.7068808853
B72: ='QT Rede Trifásica - 380V'!D121 -> 0 | C72: ='QT Rede Trifásica - 380V'!F121 -> 0 | D72: 00 | E72: 00 | F72: =IF(E72="",'QT Rede Trifásica - 380V'!O121,SUM('QT Rede Trifásica - 380V'!O121,VLOOKUP(E72,D:F,3,0))) -> 0.7068808853
B73: ='QT Rede Trifásica - 380V'!D122 -> 0 | C73: ='QT Rede Trifásica - 380V'!F122 -> 0 | D73: 00 | E73: 00 | F73: =IF(E73="",'QT Rede Trifásica - 380V'!O122,SUM('QT Rede Trifásica - 380V'!O122,VLOOKUP(E73,D:F,3,0))) -> 0.7068808853
B74: ='QT Rede Trifásica - 380V'!D123 -> 0 | C74: ='QT Rede Trifásica - 380V'!F123 -> 0 | D74: 00 | E74: 00 | F74: =IF(E74="",'QT Rede Trifásica - 380V'!O123,SUM('QT Rede Trifásica - 380V'!O123,VLOOKUP(E74,D:F,3,0))) -> 0.7068808853
B75: ='QT Rede Trifásica - 380V'!D124 -> 0 | C75: ='QT Rede Trifásica - 380V'!F124 -> 0 | D75: 00 | E75: 00 | F75: =IF(E75="",'QT Rede Trifásica - 380V'!O124,SUM('QT Rede Trifásica - 380V'!O124,VLOOKUP(E75,D:F,3,0))) -> 0.7068808853
B76: ='QT Rede Trifásica - 380V'!D125 -> 0 | C76: ='QT Rede Trifásica - 380V'!F125 -> 0 | D76: 00 | E76: 00 | F76: =IF(E76="",'QT Rede Trifásica - 380V'!O125,SUM('QT Rede Trifásica - 380V'!O125,VLOOKUP(E76,D:F,3,0))) -> 0.7068808853
B77: ='QT Rede Trifásica - 380V'!D126 -> 0 | C77: ='QT Rede Trifásica - 380V'!F126 -> 0 | D77: 00 | E77: 00 | F77: =IF(E77="",'QT Rede Trifásica - 380V'!O126,SUM('QT Rede Trifásica - 380V'!O126,VLOOKUP(E77,D:F,3,0))) -> 0.7068808853
B78: ='QT Rede Trifásica - 380V'!D127 -> 0 | C78: ='QT Rede Trifásica - 380V'!F127 -> 0 | D78: 00 | E78: 00 | F78: =IF(E78="",'QT Rede Trifásica - 380V'!O127,SUM('QT Rede Trifásica - 380V'!O127,VLOOKUP(E78,D:F,3,0))) -> 0.7068808853
B79: ='QT Rede Trifásica - 380V'!D128 -> 0 | C79: ='QT Rede Trifásica - 380V'!F128 -> 0 | D79: 00 | E79: 00 | F79: =IF(E79="",'QT Rede Trifásica - 380V'!O128,SUM('QT Rede Trifásica - 380V'!O128,VLOOKUP(E79,D:F,3,0))) -> 0.7068808853
B80: ='QT Rede Trifásica - 380V'!D129 -> 0 | C80: ='QT Rede Trifásica - 380V'!F129 -> 0 | D80: 00 | E80: 00 | F80: =IF(E80="",'QT Rede Trifásica - 380V'!O129,SUM('QT Rede Trifásica - 380V'!O129,VLOOKUP(E80,D:F,3,0))) -> 0.7068808853
B81: ='QT Rede Trifásica - 380V'!D130 -> 0 | C81: ='QT Rede Trifásica - 380V'!F130 -> 0 | D81: 00 | E81: 00 | F81: =IF(E81="",'QT Rede Trifásica - 380V'!O130,SUM('QT Rede Trifásica - 380V'!O130,VLOOKUP(E81,D:F,3,0))) -> 0.7068808853
B82: ='QT Rede Trifásica - 380V'!D131 -> 0 | C82: ='QT Rede Trifásica - 380V'!F131 -> 0 | D82: 00 | E82: 00 | F82: =IF(E82="",'QT Rede Trifásica - 380V'!O131,SUM('QT Rede Trifásica - 380V'!O131,VLOOKUP(E82,D:F,3,0))) -> 0.7068808853
B83: ='QT Rede Trifásica - 380V'!D132 -> 0 | C83: ='QT Rede Trifásica - 380V'!F132 -> 0 | D83: 00 | E83: 00 | F83: =IF(E83="",'QT Rede Trifásica - 380V'!O132,SUM('QT Rede Trifásica - 380V'!O132,VLOOKUP(E83,D:F,3,0))) -> 0.7068808853
B84: ='QT Rede Trifásica - 380V'!D133 -> 0 | C84: ='QT Rede Trifásica - 380V'!F133 -> 0 | D84: 00 | E84: 00 | F84: =IF(E84="",'QT Rede Trifásica - 380V'!O133,SUM('QT Rede Trifásica - 380V'!O133,VLOOKUP(E84,D:F,3,0))) -> 0.7068808853
B85: ='QT Rede Trifásica - 380V'!D134 -> 0 | C85: ='QT Rede Trifásica - 380V'!F134 -> 0 | D85: 00 | E85: 00 | F85: =IF(E85="",'QT Rede Trifásica - 380V'!O134,SUM('QT Rede Trifásica - 380V'!O134,VLOOKUP(E85,D:F,3,0))) -> 0.7068808853
B86: ='QT Rede Trifásica - 380V'!D135 -> 0 | C86: ='QT Rede Trifásica - 380V'!F135 -> 0 | D86: 00 | E86: 00 | F86: =IF(E86="",'QT Rede Trifásica - 380V'!O135,SUM('QT Rede Trifásica - 380V'!O135,VLOOKUP(E86,D:F,3,0))) -> 0.7068808853
B87: ='QT Rede Trifásica - 380V'!D136 -> 0 | C87: ='QT Rede Trifásica - 380V'!F136 -> 0 | D87: 00 | E87: 00 | F87: =IF(E87="",'QT Rede Trifásica - 380V'!O136,SUM('QT Rede Trifásica - 380V'!O136,VLOOKUP(E87,D:F,3,0))) -> 0.7068808853
B88: ='QT Rede Trifásica - 380V'!D137 -> 0 | C88: ='QT Rede Trifásica - 380V'!F137 -> 0 | D88: 00 | E88: 00 | F88: =IF(E88="",'QT Rede Trifásica - 380V'!O137,SUM('QT Rede Trifásica - 380V'!O137,VLOOKUP(E88,D:F,3,0))) -> 0.7068808853
B89: ='QT Rede Trifásica - 380V'!D138 -> 0 | C89: ='QT Rede Trifásica - 380V'!F138 -> 0 | D89: 00 | E89: 00 | F89: =IF(E89="",'QT Rede Trifásica - 380V'!O138,SUM('QT Rede Trifásica - 380V'!O138,VLOOKUP(E89,D:F,3,0))) -> 0.7068808853
B90: ='QT Rede Trifásica - 380V'!D139 -> 0 | C90: ='QT Rede Trifásica - 380V'!F139 -> 0 | D90: 00 | E90: 00 | F90: =IF(E90="",'QT Rede Trifásica - 380V'!O139,SUM('QT Rede Trifásica - 380V'!O139,VLOOKUP(E90,D:F,3,0))) -> 0.7068808853
B91: ='QT Rede Trifásica - 380V'!D140 -> 0 | C91: ='QT Rede Trifásica - 380V'!F140 -> 0 | D91: 00 | E91: 00 | F91: =IF(E91="",'QT Rede Trifásica - 380V'!O140,SUM('QT Rede Trifásica - 380V'!O140,VLOOKUP(E91,D:F,3,0))) -> 0.7068808853
B92: ='QT Rede Trifásica - 380V'!D141 -> 0 | C92: ='QT Rede Trifásica - 380V'!F141 -> 0 | D92: 00 | E92: 00 | F92: =IF(E92="",'QT Rede Trifásica - 380V'!O141,SUM('QT Rede Trifásica - 380V'!O141,VLOOKUP(E92,D:F,3,0))) -> 0.7068808853
B93: ='QT Rede Trifásica - 380V'!D142 -> 0 | C93: ='QT Rede Trifásica - 380V'!F142 -> 0 | D93: 00 | E93: 00 | F93: =IF(E93="",'QT Rede Trifásica - 380V'!O142,SUM('QT Rede Trifásica - 380V'!O142,VLOOKUP(E93,D:F,3,0))) -> 0.7068808853
B94: ='QT Rede Trifásica - 380V'!D143 -> 0 | C94: ='QT Rede Trifásica - 380V'!F143 -> 0 | D94: 00 | E94: 00 | F94: =IF(E94="",'QT Rede Trifásica - 380V'!O143,SUM('QT Rede Trifásica - 380V'!O143,VLOOKUP(E94,D:F,3,0))) -> 0.7068808853
B95: ='QT Rede Trifásica - 380V'!D144 -> 0 | C95: ='QT Rede Trifásica - 380V'!F144 -> 0 | D95: 00 | E95: 00 | F95: =IF(E95="",'QT Rede Trifásica - 380V'!O144,SUM('QT Rede Trifásica - 380V'!O144,VLOOKUP(E95,D:F,3,0))) -> 0.7068808853
B96: ='QT Rede Trifásica - 380V'!D145 -> 0 | C96: ='QT Rede Trifásica - 380V'!F145 -> 0 | D96: 00 | E96: 00 | F96: =IF(E96="",'QT Rede Trifásica - 380V'!O145,SUM('QT Rede Trifásica - 380V'!O145,VLOOKUP(E96,D:F,3,0))) -> 0.7068808853
B97: ='QT Rede Trifásica - 380V'!D146 -> 0 | C97: ='QT Rede Trifásica - 380V'!F146 -> 0 | D97: 00 | E97: 00 | F97: =IF(E97="",'QT Rede Trifásica - 380V'!O146,SUM('QT Rede Trifásica - 380V'!O146,VLOOKUP(E97,D:F,3,0))) -> 0.7068808853
B98: ='QT Rede Trifásica - 380V'!D147 -> 0 | C98: ='QT Rede Trifásica - 380V'!F147 -> 0 | D98: 00 | E98: 00 | F98: =IF(E98="",'QT Rede Trifásica - 380V'!O147,SUM('QT Rede Trifásica - 380V'!O147,VLOOKUP(E98,D:F,3,0))) -> 0.7068808853
B99: ='QT Rede Trifásica - 380V'!D148 -> 0 | C99: ='QT Rede Trifásica - 380V'!F148 -> 0 | D99: 00 | E99: 00 | F99: =IF(E99="",'QT Rede Trifásica - 380V'!O148,SUM('QT Rede Trifásica - 380V'!O148,VLOOKUP(E99,D:F,3,0))) -> 0.7068808853
B100: ='QT Rede Trifásica - 380V'!D149 -> 0 | C100: ='QT Rede Trifásica - 380V'!F149 -> 0 | D100: 00 | E100: 00 | F100: =IF(E100="",'QT Rede Trifásica - 380V'!O149,SUM('QT Rede Trifásica - 380V'!O149,VLOOKUP(E100,D:F,3,0))) -> 0.7068808853
B101: ='QT Rede Trifásica - 380V'!D150 -> 0 | C101: ='QT Rede Trifásica - 380V'!F150 -> 0 | D101: 00 | E101: 00 | F101: =IF(E101="",'QT Rede Trifásica - 380V'!O150,SUM('QT Rede Trifásica - 380V'!O150,VLOOKUP(E101,D:F,3,0))) -> 0.7068808853
B102: ='QT Rede Trifásica - 380V'!D151 -> 0 | C102: ='QT Rede Trifásica - 380V'!F151 -> 0 | D102: 00 | E102: 00 | F102: =IF(E102="",'QT Rede Trifásica - 380V'!O151,SUM('QT Rede Trifásica - 380V'!O151,VLOOKUP(E102,D:F,3,0))) -> 0.7068808853
B103: ='QT Rede Trifásica - 380V'!D152 -> 0 | C103: ='QT Rede Trifásica - 380V'!F152 -> 0 | D103: 00 | E103: 00 | F103: =IF(E103="",'QT Rede Trifásica - 380V'!O152,SUM('QT Rede Trifásica - 380V'!O152,VLOOKUP(E103,D:F,3,0))) -> 0.7068808853
B104: ='QT Rede Trifásica - 380V'!D153 -> 0 | C104: ='QT Rede Trifásica - 380V'!F153 -> 0 | D104: 00 | E104: 00 | F104: =IF(E104="",'QT Rede Trifásica - 380V'!O153,SUM('QT Rede Trifásica - 380V'!O153,VLOOKUP(E104,D:F,3,0))) -> 0.7068808853
B105: ='QT Rede Trifásica - 380V'!D154 -> 0 | C105: ='QT Rede Trifásica - 380V'!F154 -> 0 | D105: 00 | E105: 00 | F105: =IF(E105="",'QT Rede Trifásica - 380V'!O154,SUM('QT Rede Trifásica - 380V'!O154,VLOOKUP(E105,D:F,3,0))) -> 0.7068808853
B106: ='QT Rede Trifásica - 380V'!D155 -> 0 | C106: ='QT Rede Trifásica - 380V'!F155 -> 0 | D106: 00 | E106: 00 | F106: =IF(E106="",'QT Rede Trifásica - 380V'!O155,SUM('QT Rede Trifásica - 380V'!O155,VLOOKUP(E106,D:F,3,0))) -> 0.7068808853
B107: ='QT Rede Trifásica - 380V'!D156 -> 0 | C107: ='QT Rede Trifásica - 380V'!F156 -> 0 | D107: 00 | E107: 00 | F107: =IF(E107="",'QT Rede Trifásica - 380V'!O156,SUM('QT Rede Trifásica - 380V'!O156,VLOOKUP(E107,D:F,3,0))) -> 0.7068808853
B108: ='QT Rede Trifásica - 380V'!D157 -> 0 | C108: ='QT Rede Trifásica - 380V'!F157 -> 0 | D108: 00 | E108: 00 | F108: =IF(E108="",'QT Rede Trifásica - 380V'!O157,SUM('QT Rede Trifásica - 380V'!O157,VLOOKUP(E108,D:F,3,0))) -> 0.7068808853
B109: ='QT Rede Trifásica - 380V'!D158 -> 0 | C109: ='QT Rede Trifásica - 380V'!F158 -> 0 | D109: 00 | E109: 00 | F109: =IF(E109="",'QT Rede Trifásica - 380V'!O158,SUM('QT Rede Trifásica - 380V'!O158,VLOOKUP(E109,D:F,3,0))) -> 0.7068808853
B110: ='QT Rede Trifásica - 380V'!D159 -> 0 | C110: ='QT Rede Trifásica - 380V'!F159 -> 0 | D110: 00 | E110: 00 | F110: =IF(E110="",'QT Rede Trifásica - 380V'!O159,SUM('QT Rede Trifásica - 380V'!O159,VLOOKUP(E110,D:F,3,0))) -> 0.7068808853
B111: ='QT Rede Trifásica - 380V'!D160 -> 0 | C111: ='QT Rede Trifásica - 380V'!F160 -> 0 | D111: 00 | E111: 00 | F111: =IF(E111="",'QT Rede Trifásica - 380V'!O160,SUM('QT Rede Trifásica - 380V'!O160,VLOOKUP(E111,D:F,3,0))) -> 0.7068808853
B112: ='QT Rede Trifásica - 380V'!D161 -> 0 | C112: ='QT Rede Trifásica - 380V'!F161 -> 0 | D112: 00 | E112: 00 | F112: =IF(E112="",'QT Rede Trifásica - 380V'!O161,SUM('QT Rede Trifásica - 380V'!O161,VLOOKUP(E112,D:F,3,0))) -> 0.7068808853
B113: ='QT Rede Trifásica - 380V'!D162 -> 0 | C113: ='QT Rede Trifásica - 380V'!F162 -> 0 | D113: 00 | E113: 00 | F113: =IF(E113="",'QT Rede Trifásica - 380V'!O162,SUM('QT Rede Trifásica - 380V'!O162,VLOOKUP(E113,D:F,3,0))) -> 0.7068808853
B114: ='QT Rede Trifásica - 380V'!D163 -> 0 | C114: ='QT Rede Trifásica - 380V'!F163 -> 0 | D114: 00 | E114: 00 | F114: =IF(E114="",'QT Rede Trifásica - 380V'!O163,SUM('QT Rede Trifásica - 380V'!O163,VLOOKUP(E114,D:F,3,0))) -> 0.7068808853
B115: ='QT Rede Trifásica - 380V'!D164 -> 0 | C115: ='QT Rede Trifásica - 380V'!F164 -> 0 | D115: 00 | E115: 00 | F115: =IF(E115="",'QT Rede Trifásica - 380V'!O164,SUM('QT Rede Trifásica - 380V'!O164,VLOOKUP(E115,D:F,3,0))) -> 0.7068808853
B116: ='QT Rede Trifásica - 380V'!D165 -> 0 | C116: ='QT Rede Trifásica - 380V'!F165 -> 0 | D116: 00 | E116: 00 | F116: =IF(E116="",'QT Rede Trifásica - 380V'!O165,SUM('QT Rede Trifásica - 380V'!O165,VLOOKUP(E116,D:F,3,0))) -> 0.7068808853
B117: ='QT Rede Trifásica - 380V'!D166 -> 0 | C117: ='QT Rede Trifásica - 380V'!F166 -> 0 | D117: 00 | E117: 00 | F117: =IF(E117="",'QT Rede Trifásica - 380V'!O166,SUM('QT Rede Trifásica - 380V'!O166,VLOOKUP(E117,D:F,3,0))) -> 0.7068808853
B118: ='QT Rede Trifásica - 380V'!D167 -> 0 | C118: ='QT Rede Trifásica - 380V'!F167 -> 0 | D118: 00 | E118: 00 | F118: =IF(E118="",'QT Rede Trifásica - 380V'!O167,SUM('QT Rede Trifásica - 380V'!O167,VLOOKUP(E118,D:F,3,0))) -> 0.7068808853
B119: ='QT Rede Trifásica - 380V'!D168 -> 0 | C119: ='QT Rede Trifásica - 380V'!F168 -> 0 | D119: 00 | E119: 00 | F119: =IF(E119="",'QT Rede Trifásica - 380V'!O168,SUM('QT Rede Trifásica - 380V'!O168,VLOOKUP(E119,D:F,3,0))) -> 0.7068808853
B120: ='QT Rede Trifásica - 380V'!D169 -> 0 | C120: ='QT Rede Trifásica - 380V'!F169 -> 0 | D120: 00 | E120: 00 | F120: =IF(E120="",'QT Rede Trifásica - 380V'!O169,SUM('QT Rede Trifásica - 380V'!O169,VLOOKUP(E120,D:F,3,0))) -> 0.7068808853
B121: ='QT Rede Trifásica - 380V'!D170 -> 0 | C121: ='QT Rede Trifásica - 380V'!F170 -> 0 | D121: 00 | E121: 00 | F121: =IF(E121="",'QT Rede Trifásica - 380V'!O170,SUM('QT Rede Trifásica - 380V'!O170,VLOOKUP(E121,D:F,3,0))) -> 0.7068808853
B122: ='QT Rede Trifásica - 380V'!D171 -> 0 | C122: ='QT Rede Trifásica - 380V'!F171 -> 0 | D122: 00 | E122: 00 | F122: =IF(E122="",'QT Rede Trifásica - 380V'!O171,SUM('QT Rede Trifásica - 380V'!O171,VLOOKUP(E122,D:F,3,0))) -> 0.7068808853
B123: ='QT Rede Trifásica - 380V'!D172 -> 0 | C123: ='QT Rede Trifásica - 380V'!F172 -> 0 | D123: 00 | E123: 00 | F123: =IF(E123="",'QT Rede Trifásica - 380V'!O172,SUM('QT Rede Trifásica - 380V'!O172,VLOOKUP(E123,D:F,3,0))) -> 0.7068808853
B124: ='QT Rede Trifásica - 380V'!D173 -> 0 | C124: ='QT Rede Trifásica - 380V'!F173 -> 0 | D124: 00 | E124: 00 | F124: =IF(E124="",'QT Rede Trifásica - 380V'!O173,SUM('QT Rede Trifásica - 380V'!O173,VLOOKUP(E124,D:F,3,0))) -> 0.7068808853
B125: ='QT Rede Trifásica - 380V'!D174 -> 0 | C125: ='QT Rede Trifásica - 380V'!F174 -> 0 | D125: 00 | E125: 00 | F125: =IF(E125="",'QT Rede Trifásica - 380V'!O174,SUM('QT Rede Trifásica - 380V'!O174,VLOOKUP(E125,D:F,3,0))) -> 0.7068808853
B126: ='QT Rede Trifásica - 380V'!D175 -> 0 | C126: ='QT Rede Trifásica - 380V'!F175 -> 0 | D126: 00 | E126: 00 | F126: =IF(E126="",'QT Rede Trifásica - 380V'!O175,SUM('QT Rede Trifásica - 380V'!O175,VLOOKUP(E126,D:F,3,0))) -> 0.7068808853
B127: ='QT Rede Trifásica - 380V'!D176 -> 0 | C127: ='QT Rede Trifásica - 380V'!F176 -> 0 | D127: 00 | E127: 00 | F127: =IF(E127="",'QT Rede Trifásica - 380V'!O176,SUM('QT Rede Trifásica - 380V'!O176,VLOOKUP(E127,D:F,3,0))) -> 0.7068808853
B128: ='QT Rede Trifásica - 380V'!D177 -> 0 | C128: ='QT Rede Trifásica - 380V'!F177 -> 0 | D128: 00 | E128: 00 | F128: =IF(E128="",'QT Rede Trifásica - 380V'!O177,SUM('QT Rede Trifásica - 380V'!O177,VLOOKUP(E128,D:F,3,0))) -> 0.7068808853
B129: ='QT Rede Trifásica - 380V'!D178 -> 0 | C129: ='QT Rede Trifásica - 380V'!F178 -> 0 | D129: 00 | E129: 00 | F129: =IF(E129="",'QT Rede Trifásica - 380V'!O178,SUM('QT Rede Trifásica - 380V'!O178,VLOOKUP(E129,D:F,3,0))) -> 0.7068808853
B130: ='QT Rede Trifásica - 380V'!D179 -> 0 | C130: ='QT Rede Trifásica - 380V'!F179 -> 0 | D130: 00 | E130: 00 | F130: =IF(E130="",'QT Rede Trifásica - 380V'!O179,SUM('QT Rede Trifásica - 380V'!O179,VLOOKUP(E130,D:F,3,0))) -> 0.7068808853
B131: ='QT Rede Trifásica - 380V'!D180 -> 0 | C131: ='QT Rede Trifásica - 380V'!F180 -> 0 | D131: 00 | E131: =IFERROR(VLOOKUP(B131,C:D,2,0),"") -> 00 | F131: =IF(E131="",'QT Rede Trifásica - 380V'!O180,SUM('QT Rede Trifásica - 380V'!O180,VLOOKUP(E131,D:F,3,0))) -> 0.7068808853
B132: ='QT Rede Trifásica - 380V'!D181 -> 0 | C132: ='QT Rede Trifásica - 380V'!F181 -> 0 | D132: 00 | E132: 00 | F132: =IF(E132="",'QT Rede Trifásica - 380V'!O181,SUM('QT Rede Trifásica - 380V'!O181,VLOOKUP(E132,D:F,3,0))) -> 0.7068808853
B133: ='QT Rede Trifásica - 380V'!D182 -> 0 | C133: ='QT Rede Trifásica - 380V'!F182 -> 0 | D133: =B133&C133 -> 00 | E133: 00 | F133: =IF(E133="",'QT Rede Trifásica - 380V'!O182,SUM('QT Rede Trifásica - 380V'!O182,VLOOKUP(E133,D:F,3,0))) -> 0.7068808853
B134: ='QT Rede Trifásica - 380V'!D183 -> 0 | C134: ='QT Rede Trifásica - 380V'!F183 -> 0 | D134: 00 | E134: 00 | F134: =IF(E134="",'QT Rede Trifásica - 380V'!O183,SUM('QT Rede Trifásica - 380V'!O183,VLOOKUP(E134,D:F,3,0))) -> 0.7068808853
B135: ='QT Rede Trifásica - 380V'!D184 -> 0 | C135: ='QT Rede Trifásica - 380V'!F184 -> 0 | D135: 00 | E135: 00 | F135: =IF(E135="",'QT Rede Trifásica - 380V'!O184,SUM('QT Rede Trifásica - 380V'!O184,VLOOKUP(E135,D:F,3,0))) -> 0.7068808853
B136: ='QT Rede Trifásica - 380V'!D185 -> 0 | C136: ='QT Rede Trifásica - 380V'!F185 -> 0 | D136: 00 | E136: 00 | F136: =IF(E136="",'QT Rede Trifásica - 380V'!O185,SUM('QT Rede Trifásica - 380V'!O185,VLOOKUP(E136,D:F,3,0))) -> 0.7068808853
B137: ='QT Rede Trifásica - 380V'!D186 -> 0 | C137: ='QT Rede Trifásica - 380V'!F186 -> 0 | D137: 00 | E137: 00 | F137: =IF(E137="",'QT Rede Trifásica - 380V'!O186,SUM('QT Rede Trifásica - 380V'!O186,VLOOKUP(E137,D:F,3,0))) -> 0.7068808853
B138: ='QT Rede Trifásica - 380V'!D187 -> 0 | C138: ='QT Rede Trifásica - 380V'!F187 -> 0 | D138: 00 | E138: 00 | F138: =IF(E138="",'QT Rede Trifásica - 380V'!O187,SUM('QT Rede Trifásica - 380V'!O187,VLOOKUP(E138,D:F,3,0))) -> 0.7068808853
B139: ='QT Rede Trifásica - 380V'!D188 -> 0 | C139: ='QT Rede Trifásica - 380V'!F188 -> 0 | D139: 00 | E139: 00 | F139: =IF(E139="",'QT Rede Trifásica - 380V'!O188,SUM('QT Rede Trifásica - 380V'!O188,VLOOKUP(E139,D:F,3,0))) -> 0.7068808853
B140: ='QT Rede Trifásica - 380V'!D189 -> 0 | C140: ='QT Rede Trifásica - 380V'!F189 -> 0 | D140: 00 | E140: 00 | F140: =IF(E140="",'QT Rede Trifásica - 380V'!O189,SUM('QT Rede Trifásica - 380V'!O189,VLOOKUP(E140,D:F,3,0))) -> 0.7068808853
B141: ='QT Rede Trifásica - 380V'!D190 -> 0 | C141: ='QT Rede Trifásica - 380V'!F190 -> 0 | D141: 00 | E141: 00 | F141: =IF(E141="",'QT Rede Trifásica - 380V'!O190,SUM('QT Rede Trifásica - 380V'!O190,VLOOKUP(E141,D:F,3,0))) -> 0.7068808853
B142: ='QT Rede Trifásica - 380V'!D191 -> 0 | C142: ='QT Rede Trifásica - 380V'!F191 -> 0 | D142: 00 | E142: 00 | F142: =IF(E142="",'QT Rede Trifásica - 380V'!O191,SUM('QT Rede Trifásica - 380V'!O191,VLOOKUP(E142,D:F,3,0))) -> 0.7068808853
B143: ='QT Rede Trifásica - 380V'!D192 -> 0 | C143: ='QT Rede Trifásica - 380V'!F192 -> 0 | D143: 00 | E143: 00 | F143: =IF(E143="",'QT Rede Trifásica - 380V'!O192,SUM('QT Rede Trifásica - 380V'!O192,VLOOKUP(E143,D:F,3,0))) -> 0.7068808853
B144: ='QT Rede Trifásica - 380V'!D193 -> 0 | C144: ='QT Rede Trifásica - 380V'!F193 -> 0 | D144: 00 | E144: 00 | F144: =IF(E144="",'QT Rede Trifásica - 380V'!O193,SUM('QT Rede Trifásica - 380V'!O193,VLOOKUP(E144,D:F,3,0))) -> 0.7068808853
B145: ='QT Rede Trifásica - 380V'!D194 -> 0 | C145: ='QT Rede Trifásica - 380V'!F194 -> 0 | D145: 00 | E145: 00 | F145: =IF(E145="",'QT Rede Trifásica - 380V'!O194,SUM('QT Rede Trifásica - 380V'!O194,VLOOKUP(E145,D:F,3,0))) -> 0.7068808853
B146: ='QT Rede Trifásica - 380V'!D195 -> 0 | C146: ='QT Rede Trifásica - 380V'!F195 -> 0 | D146: 00 | E146: 00 | F146: =IF(E146="",'QT Rede Trifásica - 380V'!O195,SUM('QT Rede Trifásica - 380V'!O195,VLOOKUP(E146,D:F,3,0))) -> 0.7068808853
B147: ='QT Rede Trifásica - 380V'!D196 -> 0 | C147: ='QT Rede Trifásica - 380V'!F196 -> 0 | D147: 00 | E147: 00 | F147: =IF(E147="",'QT Rede Trifásica - 380V'!O196,SUM('QT Rede Trifásica - 380V'!O196,VLOOKUP(E147,D:F,3,0))) -> 0.7068808853
B148: ='QT Rede Trifásica - 380V'!D197 -> 0 | C148: ='QT Rede Trifásica - 380V'!F197 -> 0 | D148: 00 | E148: 00 | F148: =IF(E148="",'QT Rede Trifásica - 380V'!O197,SUM('QT Rede Trifásica - 380V'!O197,VLOOKUP(E148,D:F,3,0))) -> 0.7068808853
B149: ='QT Rede Trifásica - 380V'!D198 -> 0 | C149: ='QT Rede Trifásica - 380V'!F198 -> 0 | D149: 00 | E149: 00 | F149: =IF(E149="",'QT Rede Trifásica - 380V'!O198,SUM('QT Rede Trifásica - 380V'!O198,VLOOKUP(E149,D:F,3,0))) -> 0.7068808853
B150: ='QT Rede Trifásica - 380V'!D199 -> 0 | C150: ='QT Rede Trifásica - 380V'!F199 -> 0 | D150: 00 | E150: 00 | F150: =IF(E150="",'QT Rede Trifásica - 380V'!O199,SUM('QT Rede Trifásica - 380V'!O199,VLOOKUP(E150,D:F,3,0))) -> 0.7068808853
B151: ='QT Rede Trifásica - 380V'!D200 -> 0 | C151: ='QT Rede Trifásica - 380V'!F200 -> 0 | D151: 00 | E151: 00 | F151: =IF(E151="",'QT Rede Trifásica - 380V'!O200,SUM('QT Rede Trifásica - 380V'!O200,VLOOKUP(E151,D:F,3,0))) -> 0.7068808853
B152: ='QT Rede Trifásica - 380V'!D201 -> 0 | C152: ='QT Rede Trifásica - 380V'!F201 -> 0 | D152: 00 | E152: 00 | F152: =IF(E152="",'QT Rede Trifásica - 380V'!O201,SUM('QT Rede Trifásica - 380V'!O201,VLOOKUP(E152,D:F,3,0))) -> 0.7068808853
B153: ='QT Rede Trifásica - 380V'!D202 -> 0 | C153: ='QT Rede Trifásica - 380V'!F202 -> 0 | D153: 00 | E153: 00 | F153: =IF(E153="",'QT Rede Trifásica - 380V'!O202,SUM('QT Rede Trifásica - 380V'!O202,VLOOKUP(E153,D:F,3,0))) -> 0.7068808853
B154: ='QT Rede Trifásica - 380V'!D203 -> 0 | C154: ='QT Rede Trifásica - 380V'!F203 -> 0 | D154: 00 | E154: 00 | F154: =IF(E154="",'QT Rede Trifásica - 380V'!O203,SUM('QT Rede Trifásica - 380V'!O203,VLOOKUP(E154,D:F,3,0))) -> 0.7068808853
B155: ='QT Rede Trifásica - 380V'!D204 -> 0 | C155: ='QT Rede Trifásica - 380V'!F204 -> 0 | D155: 00 | E155: 00 | F155: =IF(E155="",'QT Rede Trifásica - 380V'!O204,SUM('QT Rede Trifásica - 380V'!O204,VLOOKUP(E155,D:F,3,0))) -> 0.7068808853
B156: ='QT Rede Trifásica - 380V'!D205 -> 0 | C156: ='QT Rede Trifásica - 380V'!F205 -> 0 | D156: 00 | E156: 00 | F156: =IF(E156="",'QT Rede Trifásica - 380V'!O205,SUM('QT Rede Trifásica - 380V'!O205,VLOOKUP(E156,D:F,3,0))) -> 0.7068808853
B157: ='QT Rede Trifásica - 380V'!D206 -> 0 | C157: ='QT Rede Trifásica - 380V'!F206 -> 0 | D157: 00 | E157: 00 | F157: =IF(E157="",'QT Rede Trifásica - 380V'!O206,SUM('QT Rede Trifásica - 380V'!O206,VLOOKUP(E157,D:F,3,0))) -> 0.7068808853
B158: ='QT Rede Trifásica - 380V'!D207 -> 0 | C158: ='QT Rede Trifásica - 380V'!F207 -> 0 | D158: 00 | E158: 00 | F158: =IF(E158="",'QT Rede Trifásica - 380V'!O207,SUM('QT Rede Trifásica - 380V'!O207,VLOOKUP(E158,D:F,3,0))) -> 0.7068808853
B159: ='QT Rede Trifásica - 380V'!D208 -> 0 | C159: ='QT Rede Trifásica - 380V'!F208 -> 0 | D159: 00 | E159: 00 | F159: =IF(E159="",'QT Rede Trifásica - 380V'!O208,SUM('QT Rede Trifásica - 380V'!O208,VLOOKUP(E159,D:F,3,0))) -> 0.7068808853
B160: ='QT Rede Trifásica - 380V'!D209 -> 0 | C160: ='QT Rede Trifásica - 380V'!F209 -> 0 | D160: 00 | E160: 00 | F160: =IF(E160="",'QT Rede Trifásica - 380V'!O209,SUM('QT Rede Trifásica - 380V'!O209,VLOOKUP(E160,D:F,3,0))) -> 0.7068808853
B161: ='QT Rede Trifásica - 380V'!D210 -> 0 | C161: ='QT Rede Trifásica - 380V'!F210 -> 0 | D161: 00 | E161: 00 | F161: =IF(E161="",'QT Rede Trifásica - 380V'!O210,SUM('QT Rede Trifásica - 380V'!O210,VLOOKUP(E161,D:F,3,0))) -> 0.7068808853
B162: ='QT Rede Trifásica - 380V'!D211 -> 0 | C162: ='QT Rede Trifásica - 380V'!F211 -> 0 | D162: 00 | E162: 00 | F162: =IF(E162="",'QT Rede Trifásica - 380V'!O211,SUM('QT Rede Trifásica - 380V'!O211,VLOOKUP(E162,D:F,3,0))) -> 0.7068808853
B163: ='QT Rede Trifásica - 380V'!D212 -> 0 | C163: ='QT Rede Trifásica - 380V'!F212 -> 0 | D163: 00 | E163: 00 | F163: =IF(E163="",'QT Rede Trifásica - 380V'!O212,SUM('QT Rede Trifásica - 380V'!O212,VLOOKUP(E163,D:F,3,0))) -> 0.7068808853
B164: ='QT Rede Trifásica - 380V'!D213 -> 0 | C164: ='QT Rede Trifásica - 380V'!F213 -> 0 | D164: 00 | E164: 00 | F164: =IF(E164="",'QT Rede Trifásica - 380V'!O213,SUM('QT Rede Trifásica - 380V'!O213,VLOOKUP(E164,D:F,3,0))) -> 0.7068808853
B165: ='QT Rede Trifásica - 380V'!D214 -> 0 | C165: ='QT Rede Trifásica - 380V'!F214 -> 0 | D165: 00 | E165: 00 | F165: =IF(E165="",'QT Rede Trifásica - 380V'!O214,SUM('QT Rede Trifásica - 380V'!O214,VLOOKUP(E165,D:F,3,0))) -> 0.7068808853
B166: ='QT Rede Trifásica - 380V'!D215 -> 0 | C166: ='QT Rede Trifásica - 380V'!F215 -> 0 | D166: 00 | E166: 00 | F166: =IF(E166="",'QT Rede Trifásica - 380V'!O215,SUM('QT Rede Trifásica - 380V'!O215,VLOOKUP(E166,D:F,3,0))) -> 0.7068808853
B167: ='QT Rede Trifásica - 380V'!D216 -> 0 | C167: ='QT Rede Trifásica - 380V'!F216 -> 0 | D167: 00 | E167: 00 | F167: =IF(E167="",'QT Rede Trifásica - 380V'!O216,SUM('QT Rede Trifásica - 380V'!O216,VLOOKUP(E167,D:F,3,0))) -> 0.7068808853
B168: ='QT Rede Trifásica - 380V'!D217 -> 0 | C168: ='QT Rede Trifásica - 380V'!F217 -> 0 | D168: 00 | E168: 00 | F168: =IF(E168="",'QT Rede Trifásica - 380V'!O217,SUM('QT Rede Trifásica - 380V'!O217,VLOOKUP(E168,D:F,3,0))) -> 0.7068808853
B169: ='QT Rede Trifásica - 380V'!D218 -> 0 | C169: ='QT Rede Trifásica - 380V'!F218 -> 0 | D169: 00 | E169: 00 | F169: =IF(E169="",'QT Rede Trifásica - 380V'!O218,SUM('QT Rede Trifásica - 380V'!O218,VLOOKUP(E169,D:F,3,0))) -> 0.7068808853
B170: ='QT Rede Trifásica - 380V'!D219 -> 0 | C170: ='QT Rede Trifásica - 380V'!F219 -> 0 | D170: 00 | E170: 00 | F170: =IF(E170="",'QT Rede Trifásica - 380V'!O219,SUM('QT Rede Trifásica - 380V'!O219,VLOOKUP(E170,D:F,3,0))) -> 0.7068808853
B171: ='QT Rede Trifásica - 380V'!D220 -> 0 | C171: ='QT Rede Trifásica - 380V'!F220 -> 0 | D171: 00 | E171: 00 | F171: =IF(E171="",'QT Rede Trifásica - 380V'!O220,SUM('QT Rede Trifásica - 380V'!O220,VLOOKUP(E171,D:F,3,0))) -> 0.7068808853
B172: ='QT Rede Trifásica - 380V'!D221 -> 0 | C172: ='QT Rede Trifásica - 380V'!F221 -> 0 | D172: 00 | E172: 00 | F172: =IF(E172="",'QT Rede Trifásica - 380V'!O221,SUM('QT Rede Trifásica - 380V'!O221,VLOOKUP(E172,D:F,3,0))) -> 0.7068808853
B173: ='QT Rede Trifásica - 380V'!D222 -> 0 | C173: ='QT Rede Trifásica - 380V'!F222 -> 0 | D173: 00 | E173: 00 | F173: =IF(E173="",'QT Rede Trifásica - 380V'!O222,SUM('QT Rede Trifásica - 380V'!O222,VLOOKUP(E173,D:F,3,0))) -> 0.7068808853
B174: ='QT Rede Trifásica - 380V'!D223 -> 0 | C174: ='QT Rede Trifásica - 380V'!F223 -> 0 | D174: 00 | E174: 00 | F174: =IF(E174="",'QT Rede Trifásica - 380V'!O223,SUM('QT Rede Trifásica - 380V'!O223,VLOOKUP(E174,D:F,3,0))) -> 0.7068808853
B175: ='QT Rede Trifásica - 380V'!D224 -> 0 | C175: ='QT Rede Trifásica - 380V'!F224 -> 0 | D175: 00 | E175: 00 | F175: =IF(E175="",'QT Rede Trifásica - 380V'!O224,SUM('QT Rede Trifásica - 380V'!O224,VLOOKUP(E175,D:F,3,0))) -> 0.7068808853
B176: ='QT Rede Trifásica - 380V'!D225 -> 0 | C176: ='QT Rede Trifásica - 380V'!F225 -> 0 | D176: 00 | E176: 00 | F176: =IF(E176="",'QT Rede Trifásica - 380V'!O225,SUM('QT Rede Trifásica - 380V'!O225,VLOOKUP(E176,D:F,3,0))) -> 0.7068808853
B177: ='QT Rede Trifásica - 380V'!D226 -> 0 | C177: ='QT Rede Trifásica - 380V'!F226 -> 0 | D177: 00 | E177: 00 | F177: =IF(E177="",'QT Rede Trifásica - 380V'!O226,SUM('QT Rede Trifásica - 380V'!O226,VLOOKUP(E177,D:F,3,0))) -> 0.7068808853
B178: ='QT Rede Trifásica - 380V'!D227 -> 0 | C178: ='QT Rede Trifásica - 380V'!F227 -> 0 | D178: 00 | E178: 00 | F178: =IF(E178="",'QT Rede Trifásica - 380V'!O227,SUM('QT Rede Trifásica - 380V'!O227,VLOOKUP(E178,D:F,3,0))) -> 0.7068808853
B179: ='QT Rede Trifásica - 380V'!D228 -> 0 | C179: ='QT Rede Trifásica - 380V'!F228 -> 0 | D179: 00 | E179: 00 | F179: =IF(E179="",'QT Rede Trifásica - 380V'!O228,SUM('QT Rede Trifásica - 380V'!O228,VLOOKUP(E179,D:F,3,0))) -> 0.7068808853
B180: ='QT Rede Trifásica - 380V'!D229 -> 0 | C180: ='QT Rede Trifásica - 380V'!F229 -> 0 | D180: 00 | E180: 00 | F180: =IF(E180="",'QT Rede Trifásica - 380V'!O229,SUM('QT Rede Trifásica - 380V'!O229,VLOOKUP(E180,D:F,3,0))) -> 0.7068808853
B181: ='QT Rede Trifásica - 380V'!D230 -> 0 | C181: ='QT Rede Trifásica - 380V'!F230 -> 0 | D181: 00 | E181: 00 | F181: =IF(E181="",'QT Rede Trifásica - 380V'!O230,SUM('QT Rede Trifásica - 380V'!O230,VLOOKUP(E181,D:F,3,0))) -> 0.7068808853
B182: ='QT Rede Trifásica - 380V'!D231 -> 0 | C182: ='QT Rede Trifásica - 380V'!F231 -> 0 | D182: 00 | E182: 00 | F182: =IF(E182="",'QT Rede Trifásica - 380V'!O231,SUM('QT Rede Trifásica - 380V'!O231,VLOOKUP(E182,D:F,3,0))) -> 0.7068808853
B183: ='QT Rede Trifásica - 380V'!D232 -> 0 | C183: ='QT Rede Trifásica - 380V'!F232 -> 0 | D183: 00 | E183: 00 | F183: =IF(E183="",'QT Rede Trifásica - 380V'!O232,SUM('QT Rede Trifásica - 380V'!O232,VLOOKUP(E183,D:F,3,0))) -> 0.7068808853
B184: ='QT Rede Trifásica - 380V'!D233 -> 0 | C184: ='QT Rede Trifásica - 380V'!F233 -> 0 | D184: 00 | E184: 00 | F184: =IF(E184="",'QT Rede Trifásica - 380V'!O233,SUM('QT Rede Trifásica - 380V'!O233,VLOOKUP(E184,D:F,3,0))) -> 0.7068808853
B185: ='QT Rede Trifásica - 380V'!D234 -> 0 | C185: ='QT Rede Trifásica - 380V'!F234 -> 0 | D185: 00 | E185: 00 | F185: =IF(E185="",'QT Rede Trifásica - 380V'!O234,SUM('QT Rede Trifásica - 380V'!O234,VLOOKUP(E185,D:F,3,0))) -> 0.7068808853
B186: ='QT Rede Trifásica - 380V'!D235 -> 0 | C186: ='QT Rede Trifásica - 380V'!F235 -> 0 | D186: 00 | E186: 00 | F186: =IF(E186="",'QT Rede Trifásica - 380V'!O235,SUM('QT Rede Trifásica - 380V'!O235,VLOOKUP(E186,D:F,3,0))) -> 0.7068808853
B187: ='QT Rede Trifásica - 380V'!D236 -> 0 | C187: ='QT Rede Trifásica - 380V'!F236 -> 0 | D187: 00 | E187: 00 | F187: =IF(E187="",'QT Rede Trifásica - 380V'!O236,SUM('QT Rede Trifásica - 380V'!O236,VLOOKUP(E187,D:F,3,0))) -> 0.7068808853
B188: ='QT Rede Trifásica - 380V'!D237 -> 0 | C188: ='QT Rede Trifásica - 380V'!F237 -> 0 | D188: 00 | E188: 00 | F188: =IF(E188="",'QT Rede Trifásica - 380V'!O237,SUM('QT Rede Trifásica - 380V'!O237,VLOOKUP(E188,D:F,3,0))) -> 0.7068808853
B189: ='QT Rede Trifásica - 380V'!D238 -> 0 | C189: ='QT Rede Trifásica - 380V'!F238 -> 0 | D189: 00 | E189: 00 | F189: =IF(E189="",'QT Rede Trifásica - 380V'!O238,SUM('QT Rede Trifásica - 380V'!O238,VLOOKUP(E189,D:F,3,0))) -> 0.7068808853
B190: ='QT Rede Trifásica - 380V'!D239 -> 0 | C190: ='QT Rede Trifásica - 380V'!F239 -> 0 | D190: 00 | E190: 00 | F190: =IF(E190="",'QT Rede Trifásica - 380V'!O239,SUM('QT Rede Trifásica - 380V'!O239,VLOOKUP(E190,D:F,3,0))) -> 0.7068808853
B191: ='QT Rede Trifásica - 380V'!D240 -> 0 | C191: ='QT Rede Trifásica - 380V'!F240 -> 0 | D191: 00 | E191: 00 | F191: =IF(E191="",'QT Rede Trifásica - 380V'!O240,SUM('QT Rede Trifásica - 380V'!O240,VLOOKUP(E191,D:F,3,0))) -> 0.7068808853
B192: ='QT Rede Trifásica - 380V'!D241 -> 0 | C192: ='QT Rede Trifásica - 380V'!F241 -> 0 | D192: 00 | E192: 00 | F192: =IF(E192="",'QT Rede Trifásica - 380V'!O241,SUM('QT Rede Trifásica - 380V'!O241,VLOOKUP(E192,D:F,3,0))) -> 0.7068808853
B193: ='QT Rede Trifásica - 380V'!D242 -> 0 | C193: ='QT Rede Trifásica - 380V'!F242 -> 0 | D193: 00 | E193: 00 | F193: =IF(E193="",'QT Rede Trifásica - 380V'!O242,SUM('QT Rede Trifásica - 380V'!O242,VLOOKUP(E193,D:F,3,0))) -> 0.7068808853
B194: ='QT Rede Trifásica - 380V'!D243 -> 0 | C194: ='QT Rede Trifásica - 380V'!F243 -> 0 | D194: 00 | E194: 00 | F194: =IF(E194="",'QT Rede Trifásica - 380V'!O243,SUM('QT Rede Trifásica - 380V'!O243,VLOOKUP(E194,D:F,3,0))) -> 0.7068808853
B195: ='QT Rede Trifásica - 380V'!D244 -> 0 | C195: ='QT Rede Trifásica - 380V'!F244 -> 0 | D195: 00 | E195: =IFERROR(VLOOKUP(B195,C:D,2,0),"") -> 00 | F195: =IF(E195="",'QT Rede Trifásica - 380V'!O244,SUM('QT Rede Trifásica - 380V'!O244,VLOOKUP(E195,D:F,3,0))) -> 0.7068808853
B196: ='QT Rede Trifásica - 380V'!D245 -> 0 | C196: ='QT Rede Trifásica - 380V'!F245 -> 0 | D196: 00 | E196: 00 | F196: =IF(E196="",'QT Rede Trifásica - 380V'!O245,SUM('QT Rede Trifásica - 380V'!O245,VLOOKUP(E196,D:F,3,0))) -> 0.7068808853
B197: ='QT Rede Trifásica - 380V'!D246 -> 0 | C197: ='QT Rede Trifásica - 380V'!F246 -> 0 | D197: =B197&C197 -> 00 | E197: 00 | F197: =IF(E197="",'QT Rede Trifásica - 380V'!O246,SUM('QT Rede Trifásica - 380V'!O246,VLOOKUP(E197,D:F,3,0))) -> 0.7068808853
B198: ='QT Rede Trifásica - 380V'!D247 -> 0 | C198: ='QT Rede Trifásica - 380V'!F247 -> 0 | D198: 00 | E198: 00 | F198: =IF(E198="",'QT Rede Trifásica - 380V'!O247,SUM('QT Rede Trifásica - 380V'!O247,VLOOKUP(E198,D:F,3,0))) -> 0.7068808853
B199: ='QT Rede Trifásica - 380V'!D248 -> 0 | C199: ='QT Rede Trifásica - 380V'!F248 -> 0 | D199: 00 | E199: 00 | F199: =IF(E199="",'QT Rede Trifásica - 380V'!O248,SUM('QT Rede Trifásica - 380V'!O248,VLOOKUP(E199,D:F,3,0))) -> 0.7068808853
B200: ='QT Rede Trifásica - 380V'!D249 -> 0 | C200: ='QT Rede Trifásica - 380V'!F249 -> 0 | D200: 00 | E200: 00 | F200: =IF(E200="",'QT Rede Trifásica - 380V'!O249,SUM('QT Rede Trifásica - 380V'!O249,VLOOKUP(E200,D:F,3,0))) -> 0.7068808853
... 188 more rows

Sheet Coeficientes
A1: Cabos | B1: Coeficiente de queda de tensão % / kVA x 100 m
B2: 220/127 V | E2: 380/220 V
B3: 1F | C3: 2F | D3: 3F | E3: 1F | F3: 2F | G3: 3F
A4: 3x35+1x35 NI | B4: 0.4421549886 | C4: 0.439718873 | D4: 0.2198594365 | E4: 0.4421549886 | F4: 0.1473849962 | G4: 0.0736924981 | H4: Cabos Padronizados | I4: Cabo Multiplexado
A5: 3x70+1x50 NI | B5: 0.2120642656 | C5: 0.2108958674 | D5: 0.1054479337 | E5: 0.2120642656 | F5: 0.07068808853 | G5: 0.03534404426 | H5: Cabos Padronizados | I5: Cabo Multiplexado
A6: 3x120+1x70 NI | B6: 0.1272154466 | C6: 0.126514535 | D6: 0.0632572675 | E6: 0.1272154466 | F6: 0.04240514885 | G6: 0.02120257443 | H6: Cabos Padronizados | I6: Cabo Multiplexado
A7: 4 CA | B7: 0.6395 | C7: 0.7245 | D7: 0.3229 | E7: 0.6395 | F7: 0.2428 | G7: 0.1079 | H7: Somente Existente | I7: Cabo Nu
A8: 1/0 CA | B8: 0.2941 | C8: 0.3407 | D8: 0.1514 | E8: 0.2941 | F8: 0.1142 | G8: 0.0507 | H8: Somente Existente | I8: Cabo Nu
A9: 16 mm² - Cobre | B9: 0.5231 | C9: 0.5934 | D9: 0.2637 | E9: 0.5231 | F9: 0.1989 | G9: 0.0884 | H9: Somente Existente | I9: Cabo Nu
A10: 35 mm² - Cobre | B10: 0.2848 | C10: 0.3251 | D10: 0.1445 | E10: 0.2848 | F10: 0.109 | G10: 0.0484 | H10: Somente Existente | I10: Cabo Nu
A11: 70 mm² - Cobre | B11: 0.1766 | C11: 0.2035 | D11: 0.0904 | E11: 0.1766 | F11: 0.0682 | G11: 0.0303 | H11: Somente Existente | I11: Cabo Nu
A14: tipo de circuito
A15: Novo
A16: Existente

Sheet Coeficientes Mono (hidden)
A1: Cabos | B1: Coeficiente de queda de tensão % / kVA x 100 m
B2: 220 V
B3: 1F
A4: 1x25+1x25 NI | B4: 0.6036165184 | C4: Somente Existente | D4: Cabo Multiplexado
A5: 4 CA | B5: 0.6395 | C5: Somente Existente | D5: Cabo Nu
A6: 1/0 CA | B6: 0.2941 | C6: Somente Existente | D6: Cabo Nu
A7: 16 mm² - Cobre | B7: 0.5231 | C7: Somente Existente | D7: Cabo Nu
